[Event "Vastgota Open 2023"]
[Site "Skara stadshotell, Jarnvagsgatan 5, Skara, Sweden"]
[Date "2023.02.18"]
[Round "3.8"]
[White "Bengtsson, Jessica"]
[Black "Lindgren, Philip"]
[Result "0-1"]
[TimeControl "15 minutes + 5 seconds per move from move one (Round 1 - 2) / 30 minutes + 10 seconds per move from move one (Round 3 - 9)"]
[WhiteTitle "WFM"]
[BlackTitle "IM"]
[WhiteFideId "1711083"]
[BlackFideId "1713230"]
[WhiteElo "2016"]
[BlackElo "2282"]

1. e4 {[%clk 00:30:17]} {[%emt 00:00:01]} c6 {[%clk 00:26:54]} {[%emt
00:03:27]} 2. d4 {[%clk 00:29:31]} {[%emt 00:00:57]} d5 {[%clk 00:27:00]}
{[%emt 00:00:03]} 3. Nc3 {[%clk 00:29:37]} {[%emt 00:00:04]} dxe4 {[%clk
00:27:04]} {[%emt 00:00:07]} 4. Nxe4 {[%clk 00:29:42]} {[%emt 00:00:04]} Nf6
{[%clk 00:27:10]} {[%emt 00:00:04]} 5. Nxf6+ {[%clk 00:28:38]} {[%emt
00:01:14]} exf6 {[%clk 00:27:17]} {[%emt 00:00:03]} 6. c3 {[%clk 00:26:08]}
{[%emt 00:02:40]} Bd6 {[%clk 00:27:19]} {[%emt 00:00:08]} 7. Bd3 {[%clk
00:25:58]} {[%emt 00:00:20]} O-O {[%clk 00:27:18]} {[%emt 00:00:11]} 8. Ne2
{[%clk 00:25:24]} {[%emt 00:00:44]} Re8 {[%clk 00:26:56]} {[%emt 00:00:32]} 9.
O-O {[%clk 00:21:31]} {[%emt 00:04:03]} Nd7 {[%clk 00:22:46]} {[%emt 00:04:19]}
10. Qc2 {[%clk 00:19:20]} {[%emt 00:02:22]} Nf8 {[%clk 00:22:33]} {[%emt
00:00:24]} 11. Be3 {[%clk 00:17:25]} {[%emt 00:02:04]} Qc7 {[%clk 00:21:43]}
{[%emt 00:01:00]} 12. g3 {[%clk 00:16:20]} {[%emt 00:01:15]} Bg4 {[%clk
00:17:18]} {[%emt 00:04:35]} 13. Bf5 {[%clk 00:11:05]} {[%emt 00:05:26]} Bf3
{[%clk 00:16:32]} {[%emt 00:00:56]} 14. Bh3 {[%clk 00:10:43]} {[%emt 00:00:31]}
Be4 {[%clk 00:10:44]} {[%emt 00:05:58]} 15. Qd2 {[%clk 00:10:17]} {[%emt
00:00:36]} Ng6 {[%clk 00:10:46]} {[%emt 00:00:07]} 16. Bg2 {[%clk 00:08:47]}
{[%emt 00:01:40]} f5 {[%clk 00:10:19]} {[%emt 00:00:37]} 17. c4 {[%clk
00:07:16]} {[%emt 00:01:41]} Bxg2 {[%clk 00:06:41]} {[%emt 00:03:49]} 18. Kxg2
{[%clk 00:07:24]} {[%emt 00:00:03]} Rad8 {[%clk 00:06:24]} {[%emt 00:00:27]} 19.
Rad1 {[%clk 00:07:03]} {[%emt 00:00:30]} c5 {[%clk 00:04:16]} {[%emt 00:02:18]}
20. d5 {[%clk 00:05:44]} {[%emt 00:01:30]} Re4 {[%clk 00:04:07]} {[%emt
00:00:18]} 21. Qc2 {[%clk 00:01:38]} {[%emt 00:04:16]} Rde8 {[%clk 00:03:59]}
{[%emt 00:00:18]} 22. Nc3 {[%clk 00:01:30]} {[%emt 00:00:19]} R4e5 {[%clk
00:03:33]} {[%emt 00:00:35]} 23. Bf4 {[%clk 00:01:09]} {[%emt 00:00:31]} Nxf4+
{[%clk 00:02:41]} {[%emt 00:01:02]} 24. gxf4 {[%clk 00:01:18]} {[%emt
00:00:02]} R5e7 {[%clk 00:02:48]} {[%emt 00:00:03]} 25. Qxf5 {[%clk 00:01:22]}
{[%emt 00:00:05]} Bxf4 {[%clk 00:00:56]} {[%emt 00:02:02]} 26. Nb5 {[%clk
00:00:47]} {[%emt 00:00:46]} Qe5 {[%clk 00:00:32]} {[%emt 00:00:33]} 27. Qxe5
{[%clk 00:00:38]} {[%emt 00:00:19]} Bxe5 {[%clk 00:00:38]} {[%emt 00:00:04]} 28.
Nxa7 {[%clk 00:00:24]} {[%emt 00:00:25]} Bxb2 {[%clk 00:00:25]} {[%emt
00:00:23]} 29. Nb5 {[%clk 00:00:18]} {[%emt 00:00:15]} g6 {[%clk 00:00:23]}
{[%emt 00:00:13]} 30. Rd2 {[%clk 00:00:21]} {[%emt 00:00:06]} Bf6 {[%clk
00:00:27]} {[%emt 00:00:05]} 31. Rfd1 {[%clk 00:00:22]} {[%emt 00:00:09]} Rd7
{[%clk 00:00:25]} {[%emt 00:00:12]} 32. Rd3 {[%clk 00:00:22]} {[%emt 00:00:11]}
Re4 {[%clk 00:00:22]} {[%emt 00:00:13]} 33. Rc1 {[%clk 00:00:16]} {[%emt
00:00:17]} Kg7 {[%clk 00:00:23]} {[%emt 00:00:08]} 34. Kf3 {[%clk 00:00:21]}
{[%emt 00:00:05]} Re5 {[%clk 00:00:24]} {[%emt 00:00:09]} 35. Rdd1 {[%clk
00:00:13]} {[%emt 00:00:19]} h5 {[%clk 00:00:22]} {[%emt 00:00:11]} 36. Re1
{[%clk 00:00:19]} {[%emt 00:00:04]} Rf5+ {[%clk 00:00:30]} {[%emt 00:00:02]} 37.
Kg2 {[%clk 00:00:23]} {[%emt 00:00:05]} Rf4 {[%clk 00:00:31]} {[%emt 00:00:10]}
38. Rc2 {[%clk 00:00:15]} {[%emt 00:00:19]} g5 {[%clk 00:00:27]} {[%emt
00:00:13]} 39. Ree2 {[%clk 00:00:16]} {[%emt 00:00:09]} g4 {[%clk 00:00:28]}
{[%emt 00:00:09]} 40. Re8 {[%clk 00:00:15]} {[%emt 00:00:11]} Rf3 {[%clk
00:00:25]} {[%emt 00:00:14]} 41. Rc8 {[%clk 00:00:15]} {[%emt 00:00:10]} Bd4
{[%clk 00:00:12]} {[%emt 00:00:23]} 42. Nxd4 {[%clk 00:00:16]} {[%emt
00:00:09]} cxd4 {[%clk 00:00:21]} {[%emt 00:00:01]} 43. Rd2 {[%clk 00:00:21]}
{[%emt 00:00:04]} d3 {[%clk 00:00:24]} {[%emt 00:00:08]} 44. Re8 {[%clk
00:00:18]} {[%emt 00:00:13]} b5 {[%clk 00:00:12]} {[%emt 00:00:21]} 45. cxb5
{[%clk 00:00:15]} {[%emt 00:00:14]} Rxd5 {[%clk 00:00:21]} 46. a4 {[%clk
00:00:21]} {[%emt 00:00:05]} Rf4 {[%clk 00:00:14]} {[%emt 00:00:16]} 47. b6
{[%clk 00:00:13]} {[%emt 00:00:18]} Rb4 {[%clk 00:00:13]} {[%emt 00:00:11]} 48.
Rb8 {[%clk 00:00:13]} {[%emt 00:00:10]} Rxa4 {[%clk 00:00:14]} {[%emt
00:00:10]} 49. Rc8 {[%clk 00:00:11]} {[%emt 00:00:11]} Rb4 {[%clk 00:00:16]}
{[%emt 00:00:07]} 50. Rc6 {[%clk 00:00:15]} {[%emt 00:00:07]} Rb3 {[%clk
00:00:12]} {[%emt 00:00:14]} 51. Kf1 {[%clk 00:00:12]} {[%emt 00:00:13]} Rb1+
{[%clk 00:00:17]} {[%emt 00:00:06]} 52. Kg2 {[%clk 00:00:21]} Rb3 {[%clk
00:00:21]} {[%emt 00:00:05]} 53. Kg3 {[%clk 00:00:18]} {[%emt 00:00:13]} f6
{[%clk 00:00:12]} {[%emt 00:00:19]} 54. Kf4 {[%clk 00:00:22]} {[%emt 00:00:05]}
Kg6 {[%clk 00:00:14]} {[%emt 00:00:09]} 55. Re6 {[%clk 00:00:17]} {[%emt
00:00:15]} Rdb5 {[%clk 00:00:12]} {[%emt 00:00:13]} 56. Re3 {[%clk 00:00:17]}
{[%emt 00:00:10]} Rf5+ {[%clk 00:00:13]} {[%emt 00:00:08]} 57. Kg3 {[%clk
00:00:24]} {[%emt 00:00:02]} Rxb6 {[%clk 00:00:15]} {[%emt 00:00:09]} 58. Rexd3
{[%clk 00:00:31]} {[%emt 00:00:03]} Rb1 {[%clk 00:00:11]} {[%emt 00:00:15]} 59.
Rd1 {[%clk 00:00:26]} {[%emt 00:00:14]} Rb4 {[%clk 00:00:15]} {[%emt 00:00:06]}
60. R1d2 {[%clk 00:00:25]} {[%emt 00:00:11]} Rbf4 {[%clk 00:00:18]} {[%emt
00:00:07]} 61. Kg2 {[%clk 00:00:24]} {[%emt 00:00:11]} Kg5 {[%clk 00:00:23]}
{[%emt 00:00:05]} 62. Rd4 {[%clk 00:00:24]} {[%emt 00:00:10]} Rf3 {[%clk
00:00:24]} {[%emt 00:00:08]} 63. R4d3 {[%clk 00:00:31]} {[%emt 00:00:04]} Kh4
{[%clk 00:00:28]} {[%emt 00:00:06]} 64. Rd4 {[%clk 00:00:18]} {[%emt 00:00:24]}
Kg5 {[%clk 00:00:29]} {[%emt 00:00:09]} 65. R4d3 {[%clk 00:00:24]} {[%emt
00:00:04]} h4 {[%clk 00:00:22]} {[%emt 00:00:16]} 66. Rd8 {[%clk 00:00:15]}
{[%emt 00:00:20]} h3+ {[%clk 00:00:28]} {[%emt 00:00:03]} 67. Kf1 {[%clk
00:00:13]} {[%emt 00:00:12]} Ra5 {[%clk 00:00:13]} {[%emt 00:00:25]} 68. Rd1
{[%clk 00:00:11]} {[%emt 00:00:13]} Rfa3 {[%clk 00:00:12]} {[%emt 00:00:10]} 69.
R8d5+ {[%clk 00:00:15]} {[%emt 00:00:06]} Rxd5 {[%clk 00:00:17]} {[%emt
00:00:06]} 70. Rxd5+ {[%clk 00:00:24]} f5 {[%clk 00:00:26]} {[%emt 00:00:02]}
71. Rd1 {[%clk 00:00:20]} {[%emt 00:00:14]} Kf4 {[%clk 00:00:34]} {[%emt
00:00:02]} 72. Rb1 {[%clk 00:00:17]} {[%emt 00:00:13]} Kf3 {[%clk 00:00:26]}
{[%emt 00:00:18]} 73. Kg1 {[%clk 00:00:13]} {[%emt 00:00:14]} Rd3 {[%clk
00:00:17]} {[%emt 00:00:18]} 74. Ra1 {[%clk 00:00:13]} {[%emt 00:00:10]} Ke2
{[%clk 00:00:19]} {[%emt 00:00:09]} 75. Ra2+ {[%clk 00:00:11]} {[%emt
00:00:13]} Rd2 {[%clk 00:00:13]} {[%emt 00:00:15]} 76. Rxd2+ {[%clk 00:00:19]}
{[%emt 00:00:02]} Kxd2 {[%clk 00:00:21]} {[%emt 00:00:01]} 77. f3 {[%clk
00:00:16]} {[%emt 00:00:13]} Ke2 {[%clk 00:00:30]} {[%emt 00:00:01]} 78. fxg4
{[%clk 00:00:20]} {[%emt 00:00:07]} f4 {[%clk 00:00:40]} 79. g5 {[%clk
00:00:15]} {[%emt 00:00:14]} f3 {[%clk 00:00:49]} 0-1

[Event "Vastgota Open 2023"]
[Site "Skara stadshotell, Jarnvagsgatan 5, Skara, Sweden"]
[Date "2023.02.18"]
[Round "3.9"]
[White "Palchuk, Andrii"]
[Black "Svensson, Leif"]
[Result "1-0"]
[TimeControl "15 minutes + 5 seconds per move from move one (Round 1 - 2) / 30 minutes + 10 seconds per move from move one (Round 3 - 9)"]
[WhiteTitle "FM"]
[WhiteFideId "14176688"]
[BlackFideId "1702459"]
[WhiteElo "2238"]
[BlackElo "1935"]

1. d4 {[%clk 00:28:46]} {[%emt 00:01:33]} d5 {[%clk 00:30:15]} {[%emt
00:00:06]} 2. c4 {[%clk 00:28:52]} {[%emt 00:00:04]} Bf5 {[%clk 00:30:20]}
{[%emt 00:00:04]} 3. cxd5 {[%clk 00:28:49]} {[%emt 00:00:13]} Bxb1 {[%clk
00:30:20]} {[%emt 00:00:10]} 4. Qa4+ {[%clk 00:28:50]} {[%emt 00:00:09]} c6
{[%clk 00:30:24]} {[%emt 00:00:07]} 5. dxc6 {[%clk 00:28:53]} {[%emt 00:00:07]}
Nxc6 {[%clk 00:30:26]} {[%emt 00:00:08]} 6. Rxb1 {[%clk 00:28:59]} {[%emt
00:00:03]} e5 {[%clk 00:30:31]} {[%emt 00:00:06]} 7. Bd2 {[%clk 00:27:09]}
{[%emt 00:01:59]} exd4 {[%clk 00:29:54]} {[%emt 00:00:47]} 8. g3 {[%clk
00:22:54]} {[%emt 00:04:25]} Qd5 {[%clk 00:25:35]} {[%emt 00:04:29]} 9. Nf3
{[%clk 00:22:58]} {[%emt 00:00:06]} d3 {[%clk 00:25:23]} {[%emt 00:00:23]} 10.
Bg2 {[%clk 00:20:04]} {[%emt 00:03:04]} dxe2 {[%clk 00:24:48]} {[%emt
00:00:43]} 11. Nh4 {[%clk 00:18:22]} {[%emt 00:01:53]} Qe6 {[%clk 00:22:07]}
{[%emt 00:02:51]} 12. Qe4 {[%clk 00:16:24]} {[%emt 00:02:09]} O-O-O {[%clk
00:17:26]} {[%emt 00:04:51]} 13. Qxe6+ {[%clk 00:16:26]} {[%emt 00:00:07]} fxe6
{[%clk 00:17:35]} {[%emt 00:00:01]} 14. Bxc6 {[%clk 00:15:47]} {[%emt
00:00:50]} bxc6 {[%clk 00:17:43]} {[%emt 00:00:03]} 15. Kxe2 {[%clk 00:15:51]}
{[%emt 00:00:05]} Nf6 {[%clk 00:17:32]} {[%emt 00:00:21]} 16. Nf3 {[%clk
00:15:37]} {[%emt 00:00:23]} Rd5 {[%clk 00:16:55]} {[%emt 00:00:48]} 17. Rhc1
{[%clk 00:15:08]} {[%emt 00:00:38]} Kb7 {[%clk 00:17:01]} {[%emt 00:00:05]} 18.
Rc4 {[%clk 00:13:36]} {[%emt 00:01:41]} Be7 {[%clk 00:14:05]} {[%emt 00:03:06]}
19. Rbc1 {[%clk 00:13:38]} {[%emt 00:00:09]} Rc8 {[%clk 00:13:56]} {[%emt
00:00:18]} 20. Ra4 {[%clk 00:13:32]} {[%emt 00:00:16]} Bc5 {[%clk 00:13:37]}
{[%emt 00:00:29]} 21. Rac4 {[%clk 00:12:33]} {[%emt 00:01:09]} Bb6 {[%clk
00:13:45]} {[%emt 00:00:03]} 22. b4 {[%clk 00:12:36]} {[%emt 00:00:06]} e5
{[%emt 00:01:43]} 23. Be3 {[%clk 00:11:17]} {[%emt 00:01:23]} h6 {[%clk
00:11:56]} {[%emt 00:00:32]} 24. a4 {[%clk 00:11:17]} {[%emt 00:00:10]} g5
{[%clk 00:11:05]} {[%emt 00:01:01]} 25. R1c2 {[%clk 00:09:18]} {[%emt
00:02:10]} g4 {[%clk 00:10:51]} {[%emt 00:00:24]} 26. Nd2 {[%clk 00:09:04]}
{[%emt 00:00:23]} h5 {[%clk 00:10:59]} {[%emt 00:00:03]} 27. Nb3 {[%clk
00:08:32]} {[%emt 00:00:42]} Ne8 {[%clk 00:08:03]} {[%emt 00:03:05]} 28. b5
{[%clk 00:07:41]} {[%emt 00:01:02]} Bxe3 {[%clk 00:07:21]} {[%emt 00:00:52]} 29.
fxe3 {[%clk 00:07:32]} {[%emt 00:00:19]} Nd6 {[%clk 00:07:11]} {[%emt
00:00:20]} 30. Rxc6 {[%clk 00:07:27]} {[%emt 00:00:16]} Rf8 {[%clk 00:06:59]}
{[%emt 00:00:22]} 31. Nc5+ {[%clk 00:06:56]} {[%emt 00:00:40]} Ka8 {[%clk
00:07:07]} {[%emt 00:00:01]} 32. Ne6 {[%clk 00:07:03]} {[%emt 00:00:02]} 1-0

[Event "Vastgota Open 2023"]
[Site "Skara stadshotell, Jarnvagsgatan 5, Skara, Sweden"]
[Date "2023.02.18"]
[Round "3.10"]
[White "Trost, Martin"]
[Black "Trost, Edvin"]
[Result "0-1"]
[TimeControl "15 minutes + 5 seconds per move from move one (Round 1 - 2) / 30 minutes + 10 seconds per move from move one (Round 3 - 9)"]
[BlackTitle "FM"]
[WhiteFideId "1710737"]
[BlackFideId "1729519"]
[WhiteElo "1867"]
[BlackElo "2226"]

1. Nf3 {[%clk 00:28:26]} {[%emt 00:01:53]} Nf6 {[%clk 00:30:15]} {[%emt
00:00:06]} 2. e3 {[%clk 00:28:33]} {[%emt 00:00:03]} g6 {[%clk 00:30:13]}
{[%emt 00:00:12]} 3. c4 {[%clk 00:28:41]} Bg7 {[%clk 00:30:22]} {[%emt
00:00:01]} 4. Nc3 {[%clk 00:28:50]} {[%emt 00:00:01]} O-O {[%clk 00:30:30]}
{[%emt 00:00:03]} 5. b3 {[%clk 00:28:59]} {[%emt 00:00:01]} d6 {[%clk
00:30:17]} {[%emt 00:00:22]} 6. Bb2 {[%clk 00:29:05]} {[%emt 00:00:05]} e5
{[%clk 00:30:16]} {[%emt 00:00:10]} 7. Be2 {[%clk 00:26:53]} {[%emt 00:02:22]}
Re8 {[%clk 00:29:34]} {[%emt 00:00:53]} 8. d4 {[%clk 00:24:47]} {[%emt
00:02:15]} e4 {[%clk 00:26:38]} {[%emt 00:03:06]} 9. Nd2 {[%clk 00:24:13]}
{[%emt 00:00:44]} c5 {[%clk 00:26:34]} {[%emt 00:00:14]} 10. d5 {[%clk
00:22:00]} {[%emt 00:02:23]} h5 {[%clk 00:26:23]} {[%emt 00:00:21]} 11. Qc2
{[%clk 00:19:30]} {[%emt 00:02:41]} Bf5 {[%clk 00:26:15]} {[%emt 00:00:18]} 12.
O-O-O {[%clk 00:17:36]} {[%emt 00:02:04]} Na6 {[%clk 00:26:01]} {[%emt
00:00:24]} 13. a3 {[%clk 00:17:17]} {[%emt 00:00:29]} Nc7 {[%clk 00:25:03]}
{[%emt 00:01:08]} 14. Nf1 {[%clk 00:14:24]} {[%emt 00:03:02]} h4 {[%clk
00:24:28]} {[%emt 00:00:46]} 15. h3 {[%clk 00:14:12]} {[%emt 00:00:21]} g5
{[%clk 00:19:16]} {[%emt 00:05:22]} 16. g3 {[%clk 00:10:10]} {[%emt 00:04:11]}
Kh7 {[%clk 00:18:31]} {[%emt 00:00:56]} 17. f4 {[%clk 00:08:41]} {[%emt
00:01:40]} Bh6 {[%clk 00:16:36]} {[%emt 00:02:05]} 18. g4 {[%clk 00:03:29]}
{[%emt 00:05:21]} gxf4 {[%clk 00:16:13]} {[%emt 00:00:33]} 19. gxf5 {[%clk
00:02:20]} {[%emt 00:01:19]} f3 {[%clk 00:16:21]} {[%emt 00:00:02]} 20. Nxe4
{[%clk 00:00:25]} {[%emt 00:02:05]} Nxe4 {[%clk 00:15:37]} {[%emt 00:00:55]} 21.
Bxf3 {[%clk 00:00:19]} {[%emt 00:00:15]} Ng3 {[%clk 00:13:08]} {[%emt
00:02:39]} 22. f6+ {[%clk 00:00:15]} {[%emt 00:00:14]} Kh8 {[%clk 00:13:15]}
{[%emt 00:00:04]} 23. Nxg3 {[%clk 00:00:15]} {[%emt 00:00:09]} Rxe3 {[%clk
00:12:46]} {[%emt 00:00:39]} 24. Nf5 {[%clk 00:00:12]} {[%emt 00:00:14]} Rc3+
{[%clk 00:12:40]} {[%emt 00:00:16]} 25. Nxh6 {[%clk 00:00:21]} {[%emt
00:00:01]} Rxc2+ {[%clk 00:12:48]} {[%emt 00:00:02]} 26. Kxc2 {[%clk 00:00:26]}
{[%emt 00:00:04]} Qf8 {[%clk 00:12:56]} {[%emt 00:00:03]} 27. Nf5 {[%clk
00:00:13]} {[%emt 00:00:23]} Qg8 {[%clk 00:11:49]} {[%emt 00:01:17]} 28. Rhg1
{[%clk 00:00:12]} {[%emt 00:00:11]} Qh7 {[%clk 00:11:58]} 29. Be4 {[%clk
00:00:11]} {[%emt 00:00:12]} Re8 {[%clk 00:12:06]} {[%emt 00:00:02]} 30. Bd3
{[%clk 00:00:12]} {[%emt 00:00:09]} Re2+ {[%clk 00:10:52]} {[%emt 00:01:24]} 31.
Bxe2 {[%clk 00:00:11]} {[%emt 00:00:11]} Qxf5+ {[%clk 00:10:59]} {[%emt
00:00:02]} 32. Bd3 {[%clk 00:00:11]} {[%emt 00:00:09]} Qf2+ {[%clk 00:11:07]}
{[%emt 00:00:03]} 33. Kc1 {[%clk 00:00:11]} {[%emt 00:00:10]} b5 {[%clk
00:11:12]} {[%emt 00:00:06]} 0-1

[Event "Vastgota Open 2023"]
[Site "Skara stadshotell, Jarnvagsgatan 5, Skara, Sweden"]
[Date "2023.02.18"]
[Round "3.11"]
[White "Bjorkman, Filip"]
[Black "Bellon Lopez, Juan Manuel"]
[Result "0-1"]
[TimeControl "15 minutes + 5 seconds per move from move one (Round 1 - 2) / 30 minutes + 10 seconds per move from move one (Round 3 - 9)"]
[BlackTitle "GM"]
[WhiteFideId "1734970"]
[BlackFideId "2200031"]
[WhiteElo "1957"]
[BlackElo "2318"]

1. e4 {[%clk 00:30:16]} c5 {[%clk 00:30:18]} {[%emt 00:00:02]} 2. Nf3 {[%clk
00:30:20]} {[%emt 00:00:07]} e6 {[%clk 00:30:27]} {[%emt 00:00:02]} 3. d4
{[%clk 00:30:23]} {[%emt 00:00:06]} cxd4 {[%clk 00:30:36]} {[%emt 00:00:01]} 4.
Nxd4 {[%clk 00:30:32]} {[%emt 00:00:02]} a6 {[%clk 00:30:40]} {[%emt 00:00:06]}
5. c4 {[%clk 00:30:34]} {[%emt 00:00:07]} Nf6 {[%clk 00:30:43]} {[%emt
00:00:06]} 6. Nc3 {[%clk 00:30:40]} {[%emt 00:00:05]} d6 {[%clk 00:30:51]}
{[%emt 00:00:02]} 7. Be3 {[%clk 00:30:12]} {[%emt 00:00:38]} Nbd7 {[%clk
00:30:36]} {[%emt 00:00:24]} 8. Be2 {[%clk 00:29:13]} {[%emt 00:01:10]} Qc7
{[%clk 00:30:39]} {[%emt 00:00:07]} 9. Rc1 {[%clk 00:29:16]} {[%emt 00:00:08]}
b6 {[%clk 00:30:47]} {[%emt 00:00:02]} 10. O-O {[%clk 00:29:10]} {[%emt
00:00:15]} Bb7 {[%clk 00:30:55]} {[%emt 00:00:01]} 11. f3 {[%clk 00:29:03]}
{[%emt 00:00:18]} Be7 {[%clk 00:31:02]} {[%emt 00:00:04]} 12. Qd2 {[%clk
00:27:44]} {[%emt 00:01:28]} O-O {[%clk 00:31:07]} {[%emt 00:00:05]} 13. Rc2
{[%clk 00:27:13]} {[%emt 00:00:41]} Rac8 {[%clk 00:31:06]} {[%emt 00:00:11]} 14.
Rfc1 {[%clk 00:27:16]} {[%emt 00:00:07]} Qb8 {[%clk 00:31:14]} {[%emt
00:00:02]} 15. b4 {[%clk 00:23:23]} {[%emt 00:04:03]} Rfe8 {[%clk 00:30:57]}
{[%emt 00:00:27]} 16. Nb3 {[%clk 00:20:37]} {[%emt 00:02:56]} Bd8 {[%clk
00:28:56]} {[%emt 00:02:11]} 17. a4 {[%clk 00:20:03]} {[%emt 00:00:44]} Bc7
{[%clk 00:28:00]} {[%emt 00:01:05]} 18. Kh1 {[%clk 00:18:56]} {[%emt 00:01:18]}
d5 {[%clk 00:22:53]} {[%emt 00:05:17]} 19. exd5 {[%clk 00:11:12]} {[%emt
00:07:53]} Bxh2 {[%clk 00:21:02]} {[%emt 00:02:02]} 20. dxe6 {[%clk 00:09:04]}
{[%emt 00:02:18]} Rxe6 {[%clk 00:20:49]} {[%emt 00:00:23]} 21. Nd4 {[%clk
00:08:12]} {[%emt 00:01:01]} Rxe3 {[%clk 00:19:20]} {[%emt 00:01:40]} 22. Qxe3
{[%clk 00:08:13]} {[%emt 00:00:09]} Bf4 {[%clk 00:19:28]} {[%emt 00:00:01]} 23.
Qf2 {[%clk 00:07:53]} {[%emt 00:00:30]} Bg3 {[%clk 00:14:20]} {[%emt 00:05:19]}
24. Qe3 {[%clk 00:06:25]} {[%emt 00:01:38]} Re8 {[%clk 00:11:45]} {[%emt
00:02:44]} 25. Qg5 {[%clk 00:06:24]} {[%emt 00:00:09]} h6 {[%clk 00:10:47]}
{[%emt 00:01:10]} 26. Qf5 {[%clk 00:06:08]} {[%emt 00:00:27]} Re5 {[%clk
00:10:25]} {[%emt 00:00:32]} 27. Qd3 {[%clk 00:06:16]} {[%emt 00:00:02]} Rh5+
{[%clk 00:08:43]} {[%emt 00:01:53]} 28. Kg1 {[%clk 00:06:24]} {[%emt 00:00:01]}
Qf4 {[%clk 00:07:17]} {[%emt 00:01:36]} 0-1